[Event "Early-Titled-Tuesday-Blitz-January-16-2024"]
[Site "Chess.com"]
[Date "2024.01.16"]
[Round "10"]
[White "Thursday_the_14_th"]
[Black "MightyGMpretender"]
[Result "1-0"]
[WhiteElo "2644"]
[BlackElo "2830"]
[TimeControl "180+1"]
[EndTime "9:54:51 PST"]
[Termination "Thursday_the_14_th won by checkmate"]

1. e4 {[%clk 0:02:56.4]} 1... e5 {[%clk 0:02:55.1]} 2. Nf3 {[%clk 0:02:55.2]}
2... Nc6 {[%clk 0:02:55.7]} 3. Bc4 {[%clk 0:02:52.3]} 3... d6 {[%clk 0:02:47.9]}
4. c3 {[%clk 0:02:49.6]} 4... Nf6 {[%clk 0:02:40.2]} 5. Ng5 {[%clk 0:02:48.4]}
5... d5 {[%clk 0:02:40.7]} 6. exd5 {[%clk 0:02:49.3]} 6... Na5 {[%clk
0:02:40.6]} 7. Qa4+ {[%clk 0:02:34]} 7... c6 {[%clk 0:02:35.4]} 8. dxc6 {[%clk
0:02:34.7]} 8... Nxc4 {[%clk 0:02:31.9]} 9. cxb7+ {[%clk 0:02:31.1]} 9... Bd7
{[%clk 0:02:30.7]} 10. Qxc4 {[%clk 0:02:29.4]} 10... Be6 {[%clk 0:02:19.2]} 11.
Nxe6 {[%clk 0:02:26.1]} 11... fxe6 {[%clk 0:02:19.2]} 12. Qc6+ {[%clk
0:02:26.3]} 12... Kf7 {[%clk 0:02:16.1]} 13. bxa8=Q {[%clk 0:02:26.7]} 13... Qd3
{[%clk 0:02:14.9]} 14. Qf3 {[%clk 0:02:20.6]} 14... Qc2 {[%clk 0:02:07.8]} 15.
O-O {[%clk 0:02:19.5]} 15... e4 {[%clk 0:02:08.4]} 16. Qxa7+ {[%clk 0:02:17.6]}
16... Be7 {[%clk 0:02:08.3]} 17. Qg3 {[%clk 0:02:16.2]} 17... Rd8 {[%clk
0:02:02.3]} 18. Na3 {[%clk 0:02:13.9]} 18... Qd3 {[%clk 0:01:57.3]} 19. Qxd3
{[%clk 0:02:12.8]} 19... Rxd3 {[%clk 0:01:58]} 20. b4 {[%clk 0:02:13.5]} 20...
Nd5 {[%clk 0:01:56.4]} 21. b5 {[%clk 0:02:13.3]} 21... Kf6 {[%clk 0:01:55.5]}
22. b6 {[%clk 0:02:13.4]} 22... Bc5 {[%clk 0:01:56.1]} 23. Nc4 {[%clk
0:02:11.5]} 23... Nf4 {[%clk 0:01:51.7]} 24. Ba3 {[%clk 0:02:09.8]} 24... Rd5
{[%clk 0:01:29.1]} 25. Bxc5 {[%clk 0:02:08.2]} 25... Rxc5 {[%clk 0:01:27.7]} 26.
b7 {[%clk 0:02:08.7]} 26... Rg5 {[%clk 0:01:24]} 27. Qd4+ {[%clk 0:02:05.7]}
27... Kf7 {[%clk 0:01:22.2]} 28. Qxe4 {[%clk 0:02:05.2]} 28... Nh3+ {[%clk
0:01:18.1]} 29. Kh1 {[%clk 0:02:03.5]} 29... Rb5 {[%clk 0:01:11.7]} 30. gxh3
{[%clk 0:02:02.8]} 30... Kf6 {[%clk 0:01:12.3]} 31. Qf4+ {[%clk 0:02:02.5]}
31... Ke7 {[%clk 0:01:11.3]} 32. b8=Q {[%clk 0:02:03.4]} 32... Rxb8 {[%clk
0:01:11]} 33. Qxb8 {[%clk 0:02:04.3]} 33... h5 {[%clk 0:01:11.6]} 34. Rab1
{[%clk 0:02:04.7]} 34... h4 {[%clk 0:01:12.5]} 35. Rb7+ {[%clk 0:02:05.1]} 35...
Kf6 {[%clk 0:01:13.4]} 36. Qf4+ {[%clk 0:02:05.6]} 36... Kg6 {[%clk 0:01:13.6]}
37. Rg1+ {[%clk 0:02:04.6]} 37... Kh5 {[%clk 0:01:13.6]} 38. Qg5# {[%clk
0:02:04.3]} 1-0

[Event "Early-Titled-Tuesday-Blitz-January-16-2024"]
[Site "Chess.com"]
[Date "2024.01.16"]
[Round "10"]
[White "Buzhizhebuguai"]
[Black "DenLaz"]
[Result "1-0"]
[WhiteElo "2690"]
[BlackElo "3042"]
[TimeControl "180+1"]
[EndTime "9:55:14 PST"]
[Termination "Buzhizhebuguai won by resignation"]

1. Nf3 {[%clk 0:03:00.9]} 1... d5 {[%clk 0:02:58.5]} 2. g3 {[%clk 0:03:01.1]}
2... g6 {[%clk 0:02:58.5]} 3. Bg2 {[%clk 0:03:00.8]} 3... Bg7 {[%clk 0:02:59.1]}
4. O-O {[%clk 0:03:01.6]} 4... Nf6 {[%clk 0:02:59.5]} 5. d4 {[%clk 0:03:01.5]}
5... O-O {[%clk 0:03:00]} 6. c4 {[%clk 0:03:01.4]} 6... c6 {[%clk 0:03:00.6]} 7.
cxd5 {[%clk 0:03:01.8]} 7... cxd5 {[%clk 0:03:00.4]} 8. Ne5 {[%clk 0:03:02.1]}
8... Nc6 {[%clk 0:03:00]} 9. Nc3 {[%clk 0:03:01.6]} 9... Bf5 {[%clk 0:03:00.3]}
10. Bf4 {[%clk 0:02:57.7]} 10... Rc8 {[%clk 0:02:59.8]} 11. Nxc6 {[%clk
0:02:57.5]} 11... bxc6 {[%clk 0:02:59.8]} 12. Rc1 {[%clk 0:02:56.2]} 12... Nd7
{[%clk 0:03:00]} 13. Na4 {[%clk 0:02:55.4]} 13... e5 {[%clk 0:03:00.1]} 14. dxe5
{[%clk 0:02:55.3]} 14... Nxe5 {[%clk 0:03:01]} 15. b3 {[%clk 0:02:53.6]} 15...
h5 {[%clk 0:03:01.1]} 16. h3 {[%clk 0:02:50.1]} 16... Re8 {[%clk 0:02:59.6]} 17.
Qd2 {[%clk 0:02:46.5]} 17... Nd7 {[%clk 0:02:55.8]} 18. Rfd1 {[%clk 0:02:43.6]}
18... Qe7 {[%clk 0:02:54.6]} 19. Re1 {[%clk 0:02:42]} 19... Nf6 {[%clk 0:02:54]}
20. Nc5 {[%clk 0:02:40.5]} 20... Rcd8 {[%clk 0:02:51.5]} 21. Bg5 {[%clk
0:02:36]} 21... Qc7 {[%clk 0:02:30.8]} 22. b4 {[%clk 0:02:25.1]} 22... Rc8
{[%clk 0:02:27.7]} 23. a3 {[%clk 0:02:21.7]} 23... Qd6 {[%clk 0:02:18.8]} 24. e4
{[%clk 0:02:11.1]} 24... Bd7 {[%clk 0:02:05.4]} 25. e5 {[%clk 0:02:11.1]} 25...
Rxe5 {[%clk 0:02:01.6]} 26. Rxe5 {[%clk 0:02:11.4]} 26... Qxe5 {[%clk
0:02:01.8]} 27. Bxf6 {[%clk 0:02:11.8]} 27... Qxf6 {[%clk 0:02:02.7]} 28. Nxd7
{[%clk 0:02:12.5]} 28... Qd6 {[%clk 0:02:03.4]} 29. Nc5 {[%clk 0:02:09.6]} 29...
h4 {[%clk 0:02:01.1]} 30. g4 {[%clk 0:01:57.8]} 30... Bf6 {[%clk 0:01:46.4]} 31.
Ne4 {[%clk 0:01:53.9]} 31... Qe5 {[%clk 0:01:43.4]} 32. Nxf6+ {[%clk 0:01:54.1]}
32... Qxf6 {[%clk 0:01:44.3]} 33. b5 {[%clk 0:01:54.5]} 33... c5 {[%clk
0:01:40.8]} 34. Qxd5 {[%clk 0:01:51.6]} 34... Kg7 {[%clk 0:01:39.6]} 35. Rxc5
{[%clk 0:01:49.1]} 35... Re8 {[%clk 0:01:39.8]} 36. Rc1 {[%clk 0:01:45.9]} 36...
Re2 {[%clk 0:01:39.3]} 37. Qf3 {[%clk 0:01:44.1]} 37... Qe7 {[%clk 0:01:35.7]}
38. Bf1 {[%clk 0:01:43.1]} 38... Re5 {[%clk 0:01:34.5]} 39. Qc3 {[%clk
0:01:42.2]} 39... Qf6 {[%clk 0:01:34.5]} 40. Re1 {[%clk 0:01:40.3]} 1-0

[Event "Early-Titled-Tuesday-Blitz-January-16-2024"]
[Site "Chess.com"]
[Date "2024.01.16"]
[Round "10"]
[White "YurasovMat-2012"]
[Black "Arystanner"]
[Result "0-1"]
[WhiteElo "2611"]
[BlackElo "2811"]
[TimeControl "180+1"]
[EndTime "9:55:16 PST"]
[Termination "Arystanner won by resignation"]

1. e4 {[%clk 0:02:25.8]} 1... c5 {[%clk 0:02:58.4]} 2. Nf3 {[%clk 0:02:23.2]}
2... e6 {[%clk 0:02:58.7]} 3. g3 {[%clk 0:02:21.7]} 3... d5 {[%clk 0:02:58.7]}
4. exd5 {[%clk 0:02:21.1]} 4... exd5 {[%clk 0:02:59.6]} 5. Bg2 {[%clk
0:02:20.8]} 5... Nc6 {[%clk 0:02:59.9]} 6. O-O {[%clk 0:02:20.2]} 6... Nf6
{[%clk 0:02:48.5]} 7. d4 {[%clk 0:02:20.3]} 7... cxd4 {[%clk 0:02:48.8]} 8. Nxd4
{[%clk 0:02:20]} 8... Bc5 {[%clk 0:02:49.4]} 9. Nxc6 {[%clk 0:02:18.4]} 9...
bxc6 {[%clk 0:02:49.8]} 10. c4 {[%clk 0:02:18.2]} 10... O-O {[%clk 0:02:49.6]}
11. cxd5 {[%clk 0:02:17.2]} 11... cxd5 {[%clk 0:02:50.3]} 12. Nc3 {[%clk
0:02:17.1]} 12... Be6 {[%clk 0:02:48.3]} 13. Bg5 {[%clk 0:02:16.4]} 13... h6
{[%clk 0:02:47.3]} 14. Bxf6 {[%clk 0:02:15.8]} 14... Qxf6 {[%clk 0:02:48.2]} 15.
Nxd5 {[%clk 0:02:14.3]} 15... Qxb2 {[%clk 0:02:47.3]} 16. Qa4 {[%clk 0:02:03.4]}
16... Bxf2+ {[%clk 0:02:39.1]} 17. Kh1 {[%clk 0:02:00.4]} 17... Rad8 {[%clk
0:02:38.5]} 18. Rab1 {[%clk 0:01:56.4]} 18... Qd4 {[%clk 0:02:38.7]} 19. Ne7+
{[%clk 0:01:46]} 19... Kh8 {[%clk 0:02:34.4]} 20. Qc2 {[%clk 0:01:44.3]} 20...
Qc5 {[%clk 0:02:14.1]} 21. Qxf2 {[%clk 0:01:36.7]} 21... Qxe7 {[%clk 0:02:13.1]}
22. Rb7 {[%clk 0:01:36.8]} 22... Rd7 {[%clk 0:02:00.6]} 23. Rfb1 {[%clk
0:01:36.2]} 23... Rfd8 {[%clk 0:01:56.2]} 24. h3 {[%clk 0:01:33.1]} 24... a5
{[%clk 0:01:54.6]} 25. Kh2 {[%clk 0:01:29.1]} 25... a4 {[%clk 0:01:38.2]} 26.
Qc2 {[%clk 0:01:22]} 26... a3 {[%clk 0:01:31.4]} 27. Qe4 {[%clk 0:01:21.2]}
27... Rxb7 {[%clk 0:01:28.9]} 28. Rxb7 {[%clk 0:01:20]} 28... Qd6 {[%clk
0:01:27.2]} 29. Qe2 {[%clk 0:01:14.6]} 29... Qd2 {[%clk 0:01:24.1]} 0-1

[Event "Early-Titled-Tuesday-Blitz-January-16-2024"]
[Site "Chess.com"]
[Date "2024.01.16"]
[Round "10"]
[White "Schachmalanders"]
[Black "profedechess93"]
[Result "1/2-1/2"]
[WhiteElo "2483"]
[BlackElo "2635"]
[TimeControl "180+1"]
[EndTime "9:55:26 PST"]
[Termination "Game drawn by repetition"]

1. e4 {[%clk 0:02:57.6]} 1... e6 {[%clk 0:02:59.9]} 2. d4 {[%clk 0:02:56.7]}
2... d5 {[%clk 0:02:59.2]} 3. exd5 {[%clk 0:02:57.2]} 3... exd5 {[%clk
0:02:59.2]} 4. Nf3 {[%clk 0:02:57.9]} 4... Bg4 {[%clk 0:02:58.9]} 5. Bd3 {[%clk
0:02:57.1]} 5... Nc6 {[%clk 0:02:59.2]} 6. c3 {[%clk 0:02:57.1]} 6... Bd6 {[%clk
0:02:59.4]} 7. O-O {[%clk 0:02:57.4]} 7... Nge7 {[%clk 0:02:59.8]} 8. Nbd2
{[%clk 0:02:57.3]} 8... Qd7 {[%clk 0:02:59.6]} 9. Re1 {[%clk 0:02:57.8]} 9... f6
{[%clk 0:02:59.6]} 10. b4 {[%clk 0:02:58]} 10... Bh5 {[%clk 0:02:57.7]} 11. a4
{[%clk 0:02:56]} 11... Bg6 {[%clk 0:02:54]} 12. Qc2 {[%clk 0:02:53.7]} 12... O-O
{[%clk 0:02:53.1]} 13. a5 {[%clk 0:02:50.4]} 13... a6 {[%clk 0:02:51.7]} 14. Nf1
{[%clk 0:02:47.3]} 14... Na7 {[%clk 0:02:40.1]} 15. Ng3 {[%clk 0:02:44.4]} 15...
Nb5 {[%clk 0:02:40.2]} 16. Bxg6 {[%clk 0:02:43.5]} 16... hxg6 {[%clk 0:02:38.5]}
17. Nh4 {[%clk 0:02:39.5]} 17... Qg4 {[%clk 0:02:29.1]} 18. Nf3 {[%clk
0:02:36.5]} 18... Rfe8 {[%clk 0:02:23.1]} 19. Bd2 {[%clk 0:02:36.1]} 19... c6
{[%clk 0:02:19]} 20. Qd3 {[%clk 0:02:28.8]} 20... Bxg3 {[%clk 0:02:13.9]} 21.
hxg3 {[%clk 0:02:27.4]} 21... Nd6 {[%clk 0:02:14.5]} 22. Nh2 {[%clk 0:02:14.1]}
22... Qf5 {[%clk 0:02:09.7]} 23. Qxf5 {[%clk 0:02:11.6]} 23... Nexf5 {[%clk
0:02:10.6]} 24. g4 {[%clk 0:02:11.4]} 24... Nh6 {[%clk 0:02:04.5]} 25. Rxe8+
{[%clk 0:02:10.2]} 25... Rxe8 {[%clk 0:02:03.6]} 26. Re1 {[%clk 0:02:10.9]}
26... Rxe1+ {[%clk 0:02:00.1]} 27. Bxe1 {[%clk 0:02:11]} 27... Nhf7 {[%clk
0:01:56.7]} 28. f3 {[%clk 0:02:10.6]} 28... Nd8 {[%clk 0:01:52.4]} 29. Nf1
{[%clk 0:02:03.8]} 29... Ne6 {[%clk 0:01:51.8]} 30. g3 {[%clk 0:01:54.2]} 30...
Nc7 {[%clk 0:01:44.3]} 31. Kf2 {[%clk 0:01:52.3]} 31... Ncb5 {[%clk 0:01:44.8]}
32. Ke3 {[%clk 0:01:49.1]} 32... Nc4+ {[%clk 0:01:40.1]} 33. Kd3 {[%clk
0:01:49.1]} 33... Kf7 {[%clk 0:01:35.3]} 34. Ne3 {[%clk 0:01:49.2]} 34... Nbd6
{[%clk 0:01:31.1]} 35. Ng2 {[%clk 0:01:42]} 35... Nb2+ {[%clk 0:01:22.7]} 36.
Kc2 {[%clk 0:01:40.5]} 36... Nbc4 {[%clk 0:01:23]} 37. Kd3 {[%clk 0:01:40.5]}
37... Nb2+ {[%clk 0:01:02.6]} 38. Kc2 {[%clk 0:01:40.3]} 38... Nbc4 {[%clk
0:01:03.5]} 39. Kd3 {[%clk 0:01:40.8]} 1/2-1/2

[Event "Early-Titled-Tuesday-Blitz-January-16-2024"]
[Site "Chess.com"]
[Date "2024.01.16"]
[Round "10"]
[White "deribas12345"]
[Black "yonaltimur"]
[Result "0-1"]
[WhiteElo "2477"]
[BlackElo "2335"]
[TimeControl "180+1"]
[EndTime "9:55:29 PST"]
[Termination "yonaltimur won by resignation"]

1. d4 {[%clk 0:03:00.9]} 1... d5 {[%clk 0:03:00]} 2. c4 {[%clk 0:02:57.5]} 2...
e6 {[%clk 0:03:00.2]} 3. Nc3 {[%clk 0:02:58]} 3... a6 {[%clk 0:02:54.3]} 4. e4
{[%clk 0:02:54.9]} 4... dxc4 {[%clk 0:02:52.1]} 5. Bxc4 {[%clk 0:02:50.2]} 5...
b5 {[%clk 0:02:51.8]} 6. Bb3 {[%clk 0:02:49.8]} 6... Bb7 {[%clk 0:02:51.5]} 7.
a3 {[%clk 0:02:39.5]} 7... Nf6 {[%clk 0:02:50.5]} 8. e5 {[%clk 0:02:36.9]} 8...
Bxg2 {[%clk 0:02:46.5]} 9. exf6 {[%clk 0:02:37]} 9... Bxh1 {[%clk 0:02:45.6]}
10. fxg7 {[%clk 0:02:36.8]} 10... Bxg7 {[%clk 0:02:45]} 11. Be3 {[%clk
0:02:33.3]} 11... Nc6 {[%clk 0:02:40.5]} 12. Qg4 {[%clk 0:02:31.4]} 12... Bxd4
{[%clk 0:02:27]} 13. Bxe6 {[%clk 0:02:22.7]} 13... fxe6 {[%clk 0:02:15.9]} 14.
Qh5+ {[%clk 0:02:19.6]} 14... Ke7 {[%clk 0:01:52.2]} 15. Rd1 {[%clk 0:02:15.3]}
15... Qd6 {[%clk 0:01:13.6]} 16. Nge2 {[%clk 0:02:10.8]} 16... e5 {[%clk
0:01:08.6]} 17. f3 {[%clk 0:01:39.9]} 17... Raf8 {[%clk 0:00:59.2]} 18. Ne4
{[%clk 0:01:39.4]} 18... Qg6 {[%clk 0:00:54.5]} 19. Qh4+ {[%clk 0:01:39]} 19...
Ke8 {[%clk 0:00:45.4]} 20. Nxd4 {[%clk 0:01:35.8]} 20... exd4 {[%clk 0:00:40.4]}
21. Bxd4 {[%clk 0:01:30.3]} 21... Nxd4 {[%clk 0:00:40.3]} 22. Rxd4 {[%clk
0:01:29.9]} 22... Qg1+ {[%clk 0:00:40.3]} 23. Ke2 {[%clk 0:01:29.8]} 0-1

[Event "Early-Titled-Tuesday-Blitz-January-16-2024"]
[Site "Chess.com"]
[Date "2024.01.16"]
[Round "10"]
[White "Sanyura"]
[Black "vasblesk"]
[Result "1-0"]
[WhiteElo "2636"]
[BlackElo "2768"]
[TimeControl "180+1"]
[EndTime "9:55:32 PST"]
[Termination "Sanyura won by resignation"]

1. Nf3 {[%clk 0:03:00.3]} 1... Nf6 {[%clk 0:02:56.3]} 2. g3 {[%clk 0:02:49.7]}
2... d5 {[%clk 0:02:54.2]} 3. Bg2 {[%clk 0:02:50.6]} 3... Bf5 {[%clk 0:02:45.5]}
4. d3 {[%clk 0:02:50.2]} 4... e6 {[%clk 0:02:45.2]} 5. O-O {[%clk 0:02:49]} 5...
h6 {[%clk 0:02:44.8]} 6. Nbd2 {[%clk 0:02:49.4]} 6... Be7 {[%clk 0:02:43.8]} 7.
b3 {[%clk 0:02:50]} 7... O-O {[%clk 0:02:43.2]} 8. Bb2 {[%clk 0:02:50.6]} 8...
c6 {[%clk 0:02:35.9]} 9. Ne5 {[%clk 0:02:49.8]} 9... Nbd7 {[%clk 0:02:35.4]} 10.
e4 {[%clk 0:02:49.8]} 10... Bh7 {[%clk 0:02:34.9]} 11. Nxd7 {[%clk 0:02:48.4]}
11... Nxd7 {[%clk 0:02:34.6]} 12. Qe2 {[%clk 0:02:48]} 12... a5 {[%clk
0:02:29.6]} 13. a3 {[%clk 0:02:47.6]} 13... a4 {[%clk 0:02:24.9]} 14. b4 {[%clk
0:02:47.4]} 14... Bf6 {[%clk 0:02:24.9]} 15. e5 {[%clk 0:02:47]} 15... Be7
{[%clk 0:02:25.1]} 16. f4 {[%clk 0:02:46.2]} 16... c5 {[%clk 0:02:23.5]} 17.
bxc5 {[%clk 0:02:45.1]} 17... Bxc5+ {[%clk 0:02:17.5]} 18. Kh1 {[%clk
0:02:44.5]} 18... Qb6 {[%clk 0:02:16.4]} 19. Rab1 {[%clk 0:02:44.9]} 19... Qc6
{[%clk 0:02:15.2]} 20. g4 {[%clk 0:02:44.4]} 20... Be7 {[%clk 0:02:14.7]} 21. f5
{[%clk 0:02:40.5]} 21... Rfe8 {[%clk 0:02:00.7]} 22. f6 {[%clk 0:02:28]} 22...
Bf8 {[%clk 0:01:59.1]} 23. g5 {[%clk 0:02:27.9]} 23... hxg5 {[%clk 0:01:50.6]}
24. Nf3 {[%clk 0:02:26.7]} 24... gxf6 {[%clk 0:01:49.1]} 25. exf6 {[%clk
0:02:26.1]} 25... Bg6 {[%clk 0:01:37.9]} 26. Ne5 {[%clk 0:01:46.5]} 26... Nxe5
{[%clk 0:01:36.2]} 27. Bxe5 {[%clk 0:01:47]} 27... Rac8 {[%clk 0:01:33.5]} 28.
c3 {[%clk 0:01:47.2]} 28... Qa6 {[%clk 0:01:31.8]} 29. Rbd1 {[%clk 0:01:45.3]}
29... Bxa3 {[%clk 0:01:30.4]} 30. Qe3 {[%clk 0:01:44.6]} 30... Bf8 {[%clk
0:01:27.7]} 31. Qxg5 {[%clk 0:01:44.5]} 31... Kh7 {[%clk 0:01:28]} 32. Rf3
{[%clk 0:01:43.1]} 32... Bf5 {[%clk 0:00:44.3]} 33. Qh5+ {[%clk 0:01:42.7]}
33... Kg8 {[%clk 0:00:44.2]} 34. Rg3+ {[%clk 0:01:42.6]} 34... Bg6 {[%clk
0:00:44.7]} 35. Rxg6+ {[%clk 0:01:42.7]} 35... fxg6 {[%clk 0:00:45.6]} 36. Qxg6+
{[%clk 0:01:43.4]} 1-0

[Event "Early-Titled-Tuesday-Blitz-January-16-2024"]
[Site "Chess.com"]
[Date "2024.01.16"]
[Round "10"]
[White "elchacal664"]
[Black "ATM622"]
[Result "0-1"]
[WhiteElo "2362"]
[BlackElo "2481"]
[TimeControl "180+1"]
[EndTime "9:55:41 PST"]
[Termination "ATM622 won by resignation"]

1. d4 {[%clk 0:02:17.3]} 1... Nf6 {[%clk 0:02:58]} 2. Nf3 {[%clk 0:02:15.1]}
2... e6 {[%clk 0:02:58.5]} 3. Bf4 {[%clk 0:02:14.9]} 3... d5 {[%clk 0:02:57.7]}
4. e3 {[%clk 0:02:15.3]} 4... Bd6 {[%clk 0:02:51.9]} 5. Bg3 {[%clk 0:02:14.5]}
5... O-O {[%clk 0:02:51.4]} 6. Bd3 {[%clk 0:02:13.7]} 6... c5 {[%clk 0:02:45.5]}
7. c3 {[%clk 0:02:13]} 7... b6 {[%clk 0:02:45.3]} 8. Nbd2 {[%clk 0:02:11]} 8...
Bb7 {[%clk 0:02:44.6]} 9. O-O {[%clk 0:02:06.8]} 9... Ne4 {[%clk 0:02:44]} 10.
Bc2 {[%clk 0:01:49.7]} 10... f5 {[%clk 0:02:42.5]} 11. Re1 {[%clk 0:01:44.1]}
11... Nc6 {[%clk 0:02:32.9]} 12. Nf1 {[%clk 0:01:41]} 12... Rc8 {[%clk
0:02:30.3]} 13. a4 {[%clk 0:01:37.2]} 13... g5 {[%clk 0:02:22.9]} 14. Bxd6
{[%clk 0:00:34.3]} 14... Nxd6 {[%clk 0:02:19]} 15. Ng3 {[%clk 0:00:20.5]} 15...
g4 {[%clk 0:02:17.3]} 16. Nd2 {[%clk 0:00:19.9]} 16... Qg5 {[%clk 0:02:07.4]}
17. Qe2 {[%clk 0:00:18.3]} 17... h5 {[%clk 0:02:04]} 18. f3 {[%clk 0:00:16.2]}
18... h4 {[%clk 0:01:56.8]} 19. Ngf1 {[%clk 0:00:15.5]} 19... Rce8 {[%clk
0:01:48.9]} 20. e4 {[%clk 0:00:15.4]} 20... cxd4 {[%clk 0:01:41.5]} 0-1

[Event "Early-Titled-Tuesday-Blitz-January-16-2024"]
[Site "Chess.com"]
[Date "2024.01.16"]
[Round "10"]
[White "MokshAD1603"]
[Black "SergioMoralesG"]
[Result "0-1"]
[WhiteElo "2583"]
[BlackElo "2458"]
[TimeControl "180+1"]
[EndTime "9:55:44 PST"]
[Termination "SergioMoralesG won by resignation"]

1. d4 {[%clk 0:02:51.2]} 1... d5 {[%clk 0:02:47.1]} 2. c4 {[%clk 0:02:50.2]}
2... c6 {[%clk 0:02:47.5]} 3. Nf3 {[%clk 0:02:49.4]} 3... Nf6 {[%clk 0:02:47.9]}
4. Nc3 {[%clk 0:02:49]} 4... e6 {[%clk 0:02:48]} 5. cxd5 {[%clk 0:02:47.2]} 5...
exd5 {[%clk 0:02:47.3]} 6. Bf4 {[%clk 0:02:47.2]} 6... Bf5 {[%clk 0:02:47]} 7.
e3 {[%clk 0:02:46.7]} 7... Nbd7 {[%clk 0:02:47.5]} 8. Nh4 {[%clk 0:02:45.9]}
8... Be6 {[%clk 0:02:46.6]} 9. Bd3 {[%clk 0:02:45.4]} 9... h6 {[%clk 0:02:46.4]}
10. Nf5 {[%clk 0:02:42.7]} 10... Nb6 {[%clk 0:02:43.6]} 11. O-O {[%clk
0:02:38.8]} 11... Qd7 {[%clk 0:02:37.8]} 12. Ng3 {[%clk 0:02:36.5]} 12... Bd6
{[%clk 0:02:35.3]} 13. Be5 {[%clk 0:02:35.3]} 13... Bxe5 {[%clk 0:02:30.7]} 14.
dxe5 {[%clk 0:02:35.1]} 14... Ng4 {[%clk 0:02:31.3]} 15. f4 {[%clk 0:02:31.2]}
15... Nxe3 {[%clk 0:02:31]} 16. Qf3 {[%clk 0:02:29.6]} 16... Nxf1 {[%clk
0:02:31]} 17. Rxf1 {[%clk 0:02:30.5]} 17... Nc4 {[%clk 0:02:03.9]} 18. Nh5
{[%clk 0:02:23.6]} 18... Bg4 {[%clk 0:01:51.9]} 19. Nxg7+ {[%clk 0:02:19.6]}
19... Kf8 {[%clk 0:01:52]} 20. Qg3 {[%clk 0:02:20.1]} 20... Kxg7 {[%clk
0:01:51.9]} 21. h3 {[%clk 0:02:20.6]} 21... h5 {[%clk 0:01:44.4]} 22. f5 {[%clk
0:02:20.5]} 22... Qc7 {[%clk 0:01:33.9]} 23. Bxc4 {[%clk 0:02:12.4]} 23... dxc4
{[%clk 0:01:34.5]} 24. hxg4 {[%clk 0:02:13.3]} 24... h4 {[%clk 0:01:30.4]} 25.
Qf4 {[%clk 0:02:13.3]} 25... Rae8 {[%clk 0:01:26.1]} 26. Re1 {[%clk 0:02:07.5]}
26... h3 {[%clk 0:01:22.1]} 27. Qg5+ {[%clk 0:01:55.8]} 27... Kf8 {[%clk
0:01:21.4]} 28. Qf6 {[%clk 0:01:56.7]} 28... Kg8 {[%clk 0:01:09.7]} 29. Ne4
{[%clk 0:01:51.4]} 29... Qb6+ {[%clk 0:01:04.3]} 30. Kh2 {[%clk 0:01:48.1]}
30... hxg2+ {[%clk 0:00:55.1]} 31. Kxg2 {[%clk 0:01:48.5]} 31... Qxb2+ {[%clk
0:00:55.5]} 32. Kg3 {[%clk 0:01:47.9]} 32... Qh2+ {[%clk 0:00:51.1]} 33. Kf3
{[%clk 0:01:44]} 33... Rh3+ {[%clk 0:00:52]} 34. Ng3 {[%clk 0:01:42.5]} 34...
Qxg3+ {[%clk 0:00:51.1]} 35. Ke4 {[%clk 0:01:43.4]} 35... Qxe1+ {[%clk
0:00:49.9]} 36. Kd4 {[%clk 0:01:40.7]} 36... Qxe5+ {[%clk 0:00:49.9]} 37. Qxe5
{[%clk 0:01:40.3]} 37... Rxe5 {[%clk 0:00:50.8]} 0-1

[Event "Early-Titled-Tuesday-Blitz-January-16-2024"]
[Site "Chess.com"]
[Date "2024.01.16"]
[Round "10"]
[White "Kildepiotr"]
[Black "TrahtarBelarus"]
[Result "0-1"]
[WhiteElo "2658"]
[BlackElo "2883"]
[TimeControl "180+1"]
[EndTime "9:56:01 PST"]
[Termination "TrahtarBelarus won by resignation"]

1. Nf3 {[%clk 0:03:00.9]} 1... c5 {[%clk 0:02:59.1]} 2. e4 {[%clk 0:03:00.3]}
2... d6 {[%clk 0:02:58.9]} 3. Bb5+ {[%clk 0:02:57.6]} 3... Bd7 {[%clk
0:02:57.2]} 4. Bxd7+ {[%clk 0:02:57.4]} 4... Nxd7 {[%clk 0:02:57.5]} 5. c4
{[%clk 0:02:56.6]} 5... Ngf6 {[%clk 0:02:56.9]} 6. Nc3 {[%clk 0:02:56.4]} 6...
e6 {[%clk 0:02:55.7]} 7. O-O {[%clk 0:02:54.5]} 7... a6 {[%clk 0:02:55.9]} 8. b3
{[%clk 0:02:54]} 8... Ne5 {[%clk 0:02:44.9]} 9. Bb2 {[%clk 0:02:51.3]} 9... Be7
{[%clk 0:02:44.7]} 10. d3 {[%clk 0:02:49.5]} 10... O-O {[%clk 0:02:43.9]} 11.
Nb1 {[%clk 0:02:46.8]} 11... Nfd7 {[%clk 0:02:37.2]} 12. Nxe5 {[%clk 0:02:44.5]}
12... Nxe5 {[%clk 0:02:27.8]} 13. f4 {[%clk 0:02:43.7]} 13... Nc6 {[%clk
0:02:28.1]} 14. Nd2 {[%clk 0:02:43.4]} 14... Bf6 {[%clk 0:02:28.3]} 15. Bxf6
{[%clk 0:02:38.7]} 15... Qxf6 {[%clk 0:02:28.2]} 16. Nf3 {[%clk 0:02:39.2]}
16... b5 {[%clk 0:02:24.5]} 17. Qd2 {[%clk 0:02:37.8]} 17... Rad8 {[%clk
0:01:58.4]} 18. Rfd1 {[%clk 0:02:36.2]} 18... d5 {[%clk 0:01:22.6]} 19. cxd5
{[%clk 0:02:33.5]} 19... exd5 {[%clk 0:01:23.5]} 20. e5 {[%clk 0:02:33.8]} 20...
Qf5 {[%clk 0:01:24.1]} 21. Rac1 {[%clk 0:02:31.3]} 21... c4 {[%clk 0:01:24.1]}
22. g3 {[%clk 0:02:21.4]} 22... f6 {[%clk 0:01:22]} 23. Re1 {[%clk 0:02:19.2]}
23... Rfe8 {[%clk 0:01:09.5]} 24. dxc4 {[%clk 0:02:16.4]} 24... dxc4 {[%clk
0:01:07.9]} 25. Qc2 {[%clk 0:02:16.9]} 25... Qxc2 {[%clk 0:01:05.7]} 26. Rxc2
{[%clk 0:02:17.8]} 26... Nb4 {[%clk 0:01:05.2]} 27. Rce2 {[%clk 0:02:17.6]}
27... c3 {[%clk 0:01:01.2]} 28. a3 {[%clk 0:02:15]} 28... Nd3 {[%clk 0:00:56.2]}
29. Ra1 {[%clk 0:02:05.1]} 29... fxe5 {[%clk 0:00:51.7]} 30. Nxe5 {[%clk
0:02:01.2]} 30... Nc5 {[%clk 0:00:39.6]} 31. b4 {[%clk 0:01:54.6]} 31... Nb3
{[%clk 0:00:36.1]} 32. Rb1 {[%clk 0:01:54]} 32... Rd2 {[%clk 0:00:35.8]} 33.
Rxb3 {[%clk 0:01:48.3]} 33... c2 {[%clk 0:00:29]} 34. Rc3 {[%clk 0:01:33.8]}
34... Rxe2 {[%clk 0:00:26.5]} 0-1